[Event "Kragero Resort International 2022"]
[Site "Kragero"]
[Date "2022.02.23"]
[Round "2.2"]
[White "Skaar, Ben Samuel Groth"]
[Black "Lye, Sigurd"]
[Result "1/2-1/2"]
[ECO "D38"]
[WhiteElo "1641"]
[BlackElo "1810"]
[Annotator "NA RC"]
[PlyCount "53"]
[EventDate "2022.02.23"]
[EventType "swiss"]
[EventCountry "NOR"]
[SourceTitle "playchess.com"]
[Source "ChessBase"]
[SourceQuality "1"]
[TimeControl "5400+30"]

1. d4 {[%emt 0:00:03]} Nf6 {[%emt 0:00:05]} 2. c4 {[%emt 0:00:04]} e6 {[%emt 0:00:04]} 3. Nf3 {[%emt 0:00:05]} d5 {[%emt 0:00:06]} 4. Nc3 {[%emt 0:00:17]} Bb4 {[%emt 0:00:10]} 5. Bg5 {[%emt 0:00:40]} h6 {[%emt 0:00:10]} 6. Bxf6 {[%emt 0:00:29]} Qxf6 {[%emt 0:00:07]} 7. e3 {[%emt 0:00:07]} O-O {[%emt 0:00:09]} 8. Bd3 {[%emt 0:00:12]} dxc4 {[%emt 0:00:21]} 9. Bxc4 {[%emt 0:00:09]} c5 {[%emt 0:01:59]} 10. O-O {[%emt 0:00:36]} cxd4 {[%emt 0:00:21]} 11. exd4 {[%emt 0:00:56]} Bxc3 {[%emt 0:10:07]} 12. bxc3 {[%emt 0:00:06]} Nd7 {[%emt 0:00:17]} 13. Re1 {[%emt 0:07:42]} Rb8 {[%emt 0:06:54]} 14. a4 {[%emt 0:07:14]} b6 {[%emt 0:02:29]} 15. Bb5 {[%emt 0:04:07]} a6 {[%emt 0:02:47]} 16. Bc6 {[%emt 0:00:28]} Rd8 {[%emt 0:01:32]} 17. Qe2 {[%emt 0:04:12]} Qf4 {[%emt 0:09:55]} 18. Bxd7 {[%emt 0:15:40]} Rxd7 {[%emt 0:03:40]} 19. Reb1 {[%emt 0:06:17]} Qd6 {[%emt 0:13:09]} 20. Qe5 {[%emt 0:10:26]} Qxe5 {[%emt 0:02:01]} 21. Nxe5 {[%emt 0:01:20]} Rc7 {[%emt 0:00:26]} 22. Ra3 {[%emt 0:00:49]} Bd7 {[%emt 0:03:50]} 23. Kf1 {[%emt 0:12:19]} f6 {[%emt 0:08:00]} 24. Nd3 {[%emt 0:03:38]} Rbb7 {[%emt 0:11:35]} 25. Nb4 {[%emt 0:02:00]} Ra7 {[%emt 0:00:38]} 26. Nd3 {[%emt 0:00:12]} Rab7 {[%emt 0:00:29]} 27. Nb4 {[%emt 0:00:11]} 1/2-1/2

[Event "Kragero Resort International 2022"]
[Site "Kragero"]
[Date "2022.02.23"]
[Round "2.3"]
[White "Haug, Havard"]
[Black "Nordquelle, Pal"]
[Result "1-0"]
[ECO "B22"]
[WhiteElo "1801"]
[BlackElo "1622"]
[Annotator "NA RC"]
[PlyCount "33"]
[EventDate "2022.02.23"]
[EventType "swiss"]
[EventCountry "NOR"]
[SourceTitle "playchess.com"]
[Source "ChessBase"]
[SourceQuality "1"]
[TimeControl "5400+30"]

1. e4 {[%emt 0:00:01]} c5 {[%emt 0:00:08]} 2. c3 {[%emt 0:00:26]} Nf6 {[%emt 0:01:20]} 3. e5 {[%emt 0:00:20]} Nd5 {[%emt 0:00:30]} 4. d4 {[%emt 0:00:12]} cxd4 {[%emt 0:01:26]} 5. Nf3 {[%emt 0:00:39]} e6 {[%emt 0:01:27]} 6. cxd4 {[%emt 0:00:33]} Nc6 {[%emt 0:00:50]} 7. Nc3 {[%emt 0:00:17]} Bb4 {[%emt 0:00:40]} 8. Bd2 {[%emt 0:00:35]} Nxc3 {[%emt 0:04:28]} 9. bxc3 {[%emt 0:00:12]} Ba5 {[%emt 0:01:17]} 10. Bd3 {[%emt 0:00:59]} O-O {[%emt 0:00:13]} 11. Bxh7+ {[%emt 0:04:46]} Kh8 {[%emt 0:03:09]} 12. Bd3 {[%emt 0:01:30]} f5 {[%emt 0:01:06]} 13. exf6 {[%emt 0:00:52]} Qxf6 {[%emt 0:00:50]} 14. O-O {[%emt 0:00:58]} d5 {[%emt 0:01:23]} 15. Ne5 {[%emt 0:01:26]} Nxe5 {[%emt 0:00:58]} 16. Qh5+ {[%emt 0:00:09]} Kg8 {[%emt 0:01:26]} 17. Bg6 {[%emt 0:01:09]} 1-0

[Event "Kragero Resort International 2022"]
[Site "Kragero"]
[Date "2022.02.23"]
[Round "2.4"]
[White "Heitun, Odd Gunnar"]
[Black "Jonsson, Kristjan Dagur"]
[Result "0-1"]
[ECO "D02"]
[WhiteElo "1616"]
[BlackElo "1797"]
[Annotator "NA RC"]
[PlyCount "96"]
[EventDate "2022.02.23"]
[EventType "swiss"]
[EventCountry "NOR"]
[SourceTitle "playchess.com"]
[Source "ChessBase"]
[SourceQuality "1"]
[TimeControl "5400+30"]

1. d4 {[%emt 0:00:02]} d5 {[%emt 0:00:07]} 2. c4 {[%emt 0:00:04]} e6 {[%emt 0:00:04]} 3. Nc3 {[%emt 0:00:18]} Be7 {[%emt 0:00:11]} 4. Nf3 {[%emt 0:00:16]} Nf6 {[%emt 0:01:21]} 5. h3 {[%emt 0:00:33]} O-O {[%emt 0:01:17]} 6. Bf4 {[%emt 0:00:39]} c6 {[%emt 0:03:12]} 7. cxd5 {[%emt 0:08:56]} exd5 {[%emt 0:00:50]} 8. e3 {[%emt 0:00:34]} Bf5 {[%emt 0:01:07]} 9. Be2 {[%emt 0:00:29]} Nbd7 {[%emt 0:02:32]} 10. O-O {[%emt 0:00:44]} Re8 {[%emt 0:03:18]} 11. Rc1 {[%emt 0:01:16]} Ne4 {[%emt 0:05:35]} 12. Nxe4 {[%emt 0:04:25]} dxe4 {[%emt 0:02:46]} 13. Nd2 {[%emt 0:01:01]} Nf6 {[%emt 0:01:06]} 14. a3 {[%emt 0:02:44]} Nd5 {[%emt 0:03:32]} 15. Bh2 {[%emt 0:04:10]} Bg5 {[%emt 0:06:52]} 16. Qb3 {[%emt 0:15:30]} Qe7 {[%emt 0:07:07]} 17. Bc4 {[%emt 0:07:58]} Be6 {[%emt 0:09:40]} 18. Nxe4 {[%emt 0:05:20]} b5 {[%emt 0:01:28]} 19. Bd3 {[%emt 0:11:25]} Nxe3 {[%emt 0:03:56]} 20. Qc3 {[%emt 0:04:26]} Nxf1 {[%emt 0:01:47]} 21. Rxf1 {[%emt 0:01:41]} Bd5 {[%emt 0:02:27]} 22. Nc5 {[%emt 0:03:52]} Rad8 {[%emt 0:03:12]} 23. Bg3 {[%emt 0:03:08]} Bf6 {[%emt 0:03:11]} 24. Rd1 {[%emt 0:07:22]} g6 {[%emt 0:03:44]} 25. Bf1 {[%emt 0:02:00]} h5 {[%emt 0:04:41]} 26. b4 {[%emt 0:01:46]} Ra8 {[%emt 0:04:15]} 27. Na6 {[%emt 0:01:09]} Rac8 {[%emt 0:04:10]} 28. Nc5 {[%emt 0:00:10]} Bg7 {[%emt 0:00:53]} 29. Na6 {[%emt 0:04:36]} h4 {[%emt 0:05:23]} 30. Bh2 {[%emt 0:00:29]} Qb7 {[%emt 0:04:05]} 31. Nc5 {[%emt 0:00:12]} Qe7 {[%emt 0:00:18]} 32. Na6 {[%emt 0:00:10]} Qd8 {[%emt 0:01:39]} 33. Nc5 {[%emt 0:00:16]} Bf8 {[%emt 0:01:56]} 34. Be5 {[%emt 0:04:23]} f6 {[%emt 0:02:04]} 35. Bh2 {[%emt 0:00:54]} Bxc5 {[%emt 0:00:47]} 36. dxc5 {[%emt 0:00:12]} Kg7 {[%emt 0:00:55]} 37. Bd6 {[%emt 0:00:18]} a5 {[%emt 0:01:25]} 38. Bxb5 {[%emt 0:00:30]} Re6 {[%emt 0:02:58]} 39. Bf1 {[%emt 0:01:45]} a4 {[%emt 0:00:44]} 40. Bf4 {[%emt 0:00:35]} Qe8 {[%emt 0:00:47]} 41. Qc1 {[%emt 0:00:49]} Bb3 {[%emt 0:00:37]} 42. Rd4 {[%emt 0:00:59]} Re1 {[%emt 0:00:44]} 43. Qc3 {[%emt 0:00:32]} Qe2 {[%emt 0:00:57]} 44. Rd7+ {[%emt 0:02:18]} Kg8 {[%emt 0:00:37]} 45. Qd3 {[%emt 0:01:07]} Rxf1+ {[%emt 0:00:32]} 46. Kh2 {[%emt 0:00:06]} Qxd3 {[%emt 0:00:06]} 47. Rxd3 {[%emt 0:00:04]} Rxf2 {[%emt 0:00:27]} 48. Rd7 {[%emt 0:00:34]} Rxf4 {[%emt 0:00:21]} 0-1

[Event "Kragero Resort International 2022"]
[Site "Kragero"]
[Date "2022.02.23"]
[Round "2.5"]
[White "Bjarnason, Snorri Vikanes"]
[Black "Hammari, Vinjar"]
[Result "1-0"]
[ECO "C02"]
[WhiteElo "1606"]
[BlackElo "1775"]
[Annotator "NA RC"]
[PlyCount "89"]
[EventDate "2022.02.23"]
[EventType "swiss"]
[EventCountry "NOR"]
[SourceTitle "playchess.com"]
[Source "ChessBase"]
[SourceQuality "1"]
[TimeControl "5400+30"]

1. e4 {[%emt 0:00:35]} e6 {[%emt 0:00:10]} 2. d4 {[%emt 0:00:21]} d5 {[%emt 0:00:10]} 3. e5 {[%emt 0:00:51]} c5 {[%emt 0:00:14]} 4. c3 {[%emt 0:00:08]} Qb6 {[%emt 0:00:03]} 5. Nf3 {[%emt 0:00:13]} Nc6 {[%emt 0:00:05]} 6. Be2 {[%emt 0:00:24]} cxd4 {[%emt 0:00:53]} 7. cxd4 {[%emt 0:00:06]} Nh6 {[%emt 0:00:06]} 8. Bxh6 {[%emt 0:01:43]} Qxb2 {[%emt 0:00:55]} 9. Nbd2 {[%emt 0:00:20]} gxh6 {[%emt 0:00:20]} 10. O-O {[%emt 0:00:21]} Bg7 {[%emt 0:06:54]} 11. Qa4 {[%emt 0:02:23]} Qb4 {[%emt 0:03:38]} 12. Qc2 {[%emt 0:06:23]} Nxd4 {[%emt 0:06:48]} 13. Nxd4 {[%emt 0:00:29]} Qxd4 {[%emt 0:01:08]} 14. Bb5+ {[%emt 0:00:11]} Bd7 {[%emt 0:00:40]} 15. Nf3 {[%emt 0:02:00]} Qb6 {[%emt 0:00:30]} 16. Bxd7+ {[%emt 0:00:21]} Kxd7 {[%emt 0:00:07]} 17. Rab1 {[%emt 0:00:24]} Qc7 {[%emt 0:00:53]} 18. Qa4+ {[%emt 0:00:19]} Ke7 {[%emt 0:01:08]} 19. Rfc1 {[%emt 0:00:44]} Qb8 {[%emt 0:01:10]} 20. Qb4+ {[%emt 0:01:21]} Kd8 {[%emt 0:09:31]} 21. Qxb7 {[%emt 0:02:59]} Qxb7 {[%emt 0:00:37]} 22. Rxb7 {[%emt 0:00:12]} Rc8 {[%emt 0:00:16]} 23. Rxc8+ {[%emt 0:00:32]} Kxc8 {[%emt 0:00:07]} 24. Rxf7 {[%emt 0:00:14]} Bf8 {[%emt 0:00:17]} 25. Rxa7 {[%emt 0:00:31]} Kb8 {[%emt 0:01:24]} 26. Rf7 {[%emt 0:00:41]} Bb4 {[%emt 0:00:50]} 27. g3 {[%emt 0:01:54]} Rd8 {[%emt 0:00:41]} 28. Nd4 {[%emt 0:00:18]} Rc8 {[%emt 0:00:42]} 29. Rxh7 {[%emt 0:00:25]} Bc3 {[%emt 0:00:26]} 30. Nxe6 {[%emt 0:00:23]} Re8 {[%emt 0:00:17]} 31. Nc5 {[%emt 0:01:11]} d4 {[%emt 0:00:05]} 32. Rxh6 {[%emt 0:00:50]} Kc7 {[%emt 0:00:16]} 33. Nd3 {[%emt 0:00:46]} Ra8 {[%emt 0:00:12]} 34. Rh7+ {[%emt 0:00:54]} Kc6 {[%emt 0:00:12]} 35. e6 {[%emt 0:00:49]} Rxa2 {[%emt 0:00:21]} 36. e7 {[%emt 0:00:15]} Kd7 {[%emt 0:02:17]} 37. Ne5+ {[%emt 0:00:10]} Ke8 {[%emt 0:00:05]} 38. Nc6 {[%emt 0:01:24]} d3 {[%emt 0:00:06]} 39. Rh6 {[%emt 0:01:54]} Ra6 {[%emt 0:00:49]} 40. Rd6 {[%emt 0:00:41]} Rxc6 {[%emt 0:00:10]} 41. Rxc6 {[%emt 0:00:21]} d2 {[%emt 0:00:07]} 42. Rd6 {[%emt 0:00:27]} Kxe7 {[%emt 0:00:04]} 43. Rd3 {[%emt 0:00:26]} Ke6 {[%emt 0:00:07]} 44. Kf1 {[%emt 0:00:11]} Ke5 {[%emt 0:00:14]} 45. f3 {[%emt 0:00:22]} 1-0

[Event "Kragero Resort International 2022"]
[Site "Kragero"]
[Date "2022.02.23"]
[Round "2.6"]
[White "Dyrnes, Jussi"]
[Black "Stenseng, Benjamin"]
[Result "0-1"]
[ECO "A48"]
[WhiteElo "1764"]
[BlackElo "1578"]
[Annotator "NA RC"]
[PlyCount "84"]
[EventDate "2022.02.23"]
[EventType "swiss"]
[EventCountry "NOR"]
[SourceTitle "playchess.com"]
[Source "ChessBase"]
[SourceQuality "1"]
[TimeControl "5400+30"]

1. d4 {[%emt 0:00:33]} Nf6 {[%emt 0:00:49]} 2. Nf3 {[%emt 0:00:44]} g6 {[%emt 0:00:07]} 3. c3 {[%emt 0:02:26]} Bg7 {[%emt 0:00:24]} 4. Qc2 {[%emt 0:01:55]} d5 {[%emt 0:01:22]} 5. e3 {[%emt 0:02:13]} O-O {[%emt 0:03:22]} 6. Bd3 {[%emt 0:02:25]} Nbd7 {[%emt 0:05:35]} 7. Nbd2 {[%emt 0:04:47]} c5 {[%emt 0:00:39]} 8. b3 {[%emt 0:03:26]} Re8 {[%emt 0:01:52]} 9. O-O {[%emt 0:00:58]} e5 {[%emt 0:03:10]} 10. e4 {[%emt 0:04:07]} cxd4 {[%emt 0:02:38]} 11. cxd4 {[%emt 0:06:13]} exd4 {[%emt 0:05:15]} 12. exd5 {[%emt 0:13:23]} Nxd5 {[%emt 0:05:09]} 13. Ne4 {[%emt 0:05:29]} Nb4 {[%emt 0:04:24]} 14. Qc4 {[%emt 0:05:20]} Nxd3 {[%emt 0:02:18]} 15. Qxd3 {[%emt 0:00:08]} Ne5 {[%emt 0:14:25]} 16. Nxe5 {[%emt 0:01:17]} Rxe5 {[%emt 0:01:54]} 17. f4 {[%emt 0:01:58]} Rxe4 {[%emt 0:07:52]} 18. Qxe4 {[%emt 0:00:23]} d3 {[%emt 0:00:33]} 19. Rb1 {[%emt 0:02:52]} d2 {[%emt 0:09:53]} 20. Bxd2 {[%emt 0:08:47]} Bf5 {[%emt 0:00:58]} 21. Qxb7 {[%emt 0:01:12]} Rb8 {[%emt 0:02:39]} 22. Qxb8 {[%emt 0:07:23]} Qxb8 {[%emt 0:00:35]} 23. Rbe1 {[%emt 0:01:06]} h6 {[%emt 0:01:47]} 24. Be3 {[%emt 0:02:35]} a5 {[%emt 0:01:27]} 25. Bc5 {[%emt 0:00:56]} Qb5 {[%emt 0:03:04]} 26. Rc1 {[%emt 0:02:22]} Bb2 {[%emt 0:00:55]} 27. a4 {[%emt 0:02:22]} Qc6 {[%emt 0:03:35]} 28. Be3 {[%emt 0:05:15]} Bxc1 {[%emt 0:00:20]} 29. Rxc1 {[%emt 0:00:07]} Qe4 {[%emt 0:02:23]} 30. Kf2 {[%emt 0:00:33]} Qb4 {[%emt 0:00:33]} 31. Rd1 {[%emt 0:01:39]} g5 {[%emt 0:02:57]} 32. Rd8+ {[%emt 0:00:53]} Kh7 {[%emt 0:00:18]} 33. fxg5 {[%emt 0:02:11]} Qh4+ {[%emt 0:01:22]} 34. Ke2 {[%emt 0:00:35]} hxg5 {[%emt 0:02:46]} 35. h3 {[%emt 0:03:32]} Qg3 {[%emt 0:02:25]} 36. Bf2 {[%emt 0:04:48]} Qxg2 {[%emt 0:00:47]} 37. Rd4 {[%emt 0:00:19]} Qxh3 {[%emt 0:00:28]} 38. b4 {[%emt 0:00:19]} axb4 {[%emt 0:01:08]} 39. a5 {[%emt 0:00:18]} Qa3 {[%emt 0:00:50]} 40. Be1 {[%emt 0:01:38]} b3 {[%emt 0:01:55]} 41. Rd5 {[%emt 0:00:38]} Bg4+ {[%emt 0:00:23]} 42. Kf2 {[%emt 0:00:19]} b2 {[%emt 0:00:21]} 0-1

[Event "Kragero Resort International 2022"]
[Site "Kragero"]
[Date "2022.02.23"]
[Round "2.7"]
[White "Gharibyan, Mane"]
[Black "Helland, Phillip"]
[Result "1-0"]
[ECO "B03"]
[WhiteElo "1592"]
[BlackElo "1760"]
[Annotator "NA RC"]
[PlyCount "65"]
[EventDate "2022.02.23"]
[EventType "swiss"]
[EventCountry "NOR"]
[SourceTitle "playchess.com"]
[Source "ChessBase"]
[SourceQuality "1"]
[TimeControl "5400+30"]

1. e4 {[%emt 0:00:03]} Nf6 {[%emt 0:00:24]} 2. e5 {[%emt 0:00:35]} Nd5 {[%emt 0:00:11]} 3. c4 {[%emt 0:00:22]} Nb6 {[%emt 0:00:09]} 4. d4 {[%emt 0:00:04]} d6 {[%emt 0:00:43]} 5. exd6 {[%emt 0:00:28]} exd6 {[%emt 0:00:12]} 6. Bd3 {[%emt 0:11:11]} Be7 {[%emt 0:02:12]} 7. Nc3 {[%emt 0:01:06]} O-O {[%emt 0:01:12]} 8. Be3 {[%emt 0:05:33]} Bf6 {[%emt 0:02:23]} 9. Nge2 {[%emt 0:02:08]} Nc6 {[%emt 0:14:01]} 10. b3 {[%emt 0:10:22]} g6 {[%emt 0:06:19]} 11. O-O {[%emt 0:03:01]} Bg7 {[%emt 0:01:28]} 12. Rc1 {[%emt 0:03:24]} Re8 {[%emt 0:01:30]} 13. Qd2 {[%emt 0:03:08]} Bg4 {[%emt 0:02:45]} 14. f3 {[%emt 0:03:52]} Qe7 {[%emt 0:05:09]} 15. Bg5 {[%emt 0:16:10]} f6 {[%emt 0:00:54]} 16. Bh4 {[%emt 0:06:12]} Bc8 {[%emt 0:17:35]} 17. Bf2 {[%emt 0:02:39]} Qf8 {[%emt 0:01:55]} 18. c5 {[%emt 0:08:59]} Bh6 {[%emt 0:06:22]} 19. f4 {[%emt 0:07:44]} Nd7 {[%emt 0:03:48]} 20. Nd5 {[%emt 0:01:53]} Qf7 {[%emt 0:07:58]} 21. Nxc7 {[%emt 0:03:54]} Nxc5 {[%emt 0:00:59]} 22. Bc4 {[%emt 0:01:32]} d5 {[%emt 0:02:03]} 23. Bxd5 {[%emt 0:01:21]} Be6 {[%emt 0:00:35]} 24. Bxe6 {[%emt 0:04:37]} Nxe6 {[%emt 0:00:56]} 25. Nxe8 {[%emt 0:00:55]} Qxe8 {[%emt 0:00:31]} 26. Be3 {[%emt 0:01:39]} Ne7 {[%emt 0:01:57]} 27. d5 {[%emt 0:00:32]} Rd8 {[%emt 0:00:57]} 28. Nc3 {[%emt 0:00:24]} Nc7 {[%emt 0:03:03]} 29. d6 {[%emt 0:00:27]} Nf5 {[%emt 0:00:18]} 30. Bc5 {[%emt 0:00:12]} Qc6 {[%emt 0:01:39]} 31. Ba3 {[%emt 0:00:59]} Nxd6 {[%emt 0:01:11]} 32. Na4 {[%emt 0:00:21]} Qd7 {[%emt 0:03:51]} 33. Qxd6 {[%emt 0:00:31]} 1-0

[Event "Kragero Resort International 2022"]
[Site "Kragero"]
[Date "2022.02.23"]
[Round "2.8"]
[White "Strand, Amund Pihl"]
[Black "Alvanjyan, Aida"]
[Result "1/2-1/2"]
[ECO "A17"]
[WhiteElo "1748"]
[BlackElo "1566"]
[Annotator "NA RC"]
[PlyCount "82"]
[EventDate "2022.02.23"]
[EventType "swiss"]
[EventCountry "NOR"]
[SourceTitle "playchess.com"]
[Source "ChessBase"]
[SourceQuality "1"]
[TimeControl "5400+30"]

1. c4 {[%emt 0:00:06]} e6 {[%emt 0:00:12]} 2. Nc3 {[%emt 0:00:34]} d5 {[%emt 0:00:09]} 3. e3 {[%emt 0:00:52]} Nf6 {[%emt 0:00:14]} 4. Nf3 {[%emt 0:00:38]} Bd6 {[%emt 0:01:48]} 5. b3 {[%emt 0:07:48]} c5 {[%emt 0:03:31]} 6. Be2 {[%emt 0:09:26]} Nc6 {[%emt 0:02:51]} 7. O-O {[%emt 0:07:23]} O-O {[%emt 0:00:30]} 8. cxd5 {[%emt 0:06:15]} Nxd5 {[%emt 0:11:06]} 9. Bb2 {[%emt 0:01:17]} Re8 {[%emt 0:06:00]} 10. Rc1 {[%emt 0:02:47]} Nxc3 {[%emt 0:05:20]} 11. Rxc3 {[%emt 0:03:15]} Nb4 {[%emt 0:04:58]} 12. Qa1 {[%emt 0:05:21]} Bf8 {[%emt 0:16:19]} 13. Rd1 {[%emt 0:01:58]} Qa5 {[%emt 0:02:02]} 14. a3 {[%emt 0:04:31]} Nd5 {[%emt 0:02:07]} 15. Rc4 {[%emt 0:01:15]} f6 {[%emt 0:06:18]} 16. d4 {[%emt 0:06:53]} b5 {[%emt 0:08:28]} 17. Rcc1 {[%emt 0:02:09]} Qb6 {[%emt 0:03:17]} 18. dxc5 {[%emt 0:11:39]} Bxc5 {[%emt 0:01:05]} 19. b4 {[%emt 0:02:20]} Bf8 {[%emt 0:03:11]} 20. Bd4 {[%emt 0:00:54]} Qb8 {[%emt 0:01:03]} 21. Nd2 {[%emt 0:03:03]} a5 {[%emt 0:01:52]} 22. bxa5 {[%emt 0:05:06]} Rxa5 {[%emt 0:00:42]} 23. Bc5 {[%emt 0:00:25]} b4 {[%emt 0:03:36]} 24. Bxf8 {[%emt 0:04:44]} Rxf8 {[%emt 0:00:56]} 25. Nc4 {[%emt 0:00:58]} Ra8 {[%emt 0:04:06]} 26. Bf3 {[%emt 0:02:09]} Ba6 {[%emt 0:04:21]} 27. Rxd5 {[%emt 0:01:31]} Bxc4 {[%emt 0:01:39]} 28. Rd4 {[%emt 0:04:44]} Rxa3 {[%emt 0:02:07]} 29. Qb2 {[%emt 0:00:28]} Rb3 {[%emt 0:01:59]} 30. Qa2 {[%emt 0:00:49]} Rc3 {[%emt 0:02:29]} 31. Rxc4 {[%emt 0:00:24]} b3 {[%emt 0:00:42]} 32. Qb2 {[%emt 0:00:20]} Rxc4 {[%emt 0:00:54]} 33. Rxc4 {[%emt 0:00:07]} Qb5 {[%emt 0:00:23]} 34. Rc3 {[%emt 0:00:35]} Qa5 {[%emt 0:00:26]} 35. Bd1 {[%emt 0:01:22]} Rb8 {[%emt 0:00:43]} 36. g3 {[%emt 0:03:51]} Qa2 {[%emt 0:00:34]} 37. Qxa2 {[%emt 0:00:30]} bxa2 {[%emt 0:00:01]} 38. Ra3 {[%emt 0:00:17]} Rb1 {[%emt 0:00:17]} 39. Rxa2 {[%emt 0:00:06]} Rxd1+ {[%emt 0:00:04]} 40. Kg2 {[%emt 0:00:06]} Kf7 {[%emt 0:00:36]} 41. Ra7+ {[%emt 0:00:06]} Kg6 {[%emt 0:00:27]} 1/2-1/2

[Event "Kragero Resort International 2022"]
[Site "Kragero"]
[Date "2022.02.24"]
[Round "3.1"]
[White "Engeset, Audun"]
[Black "Skarphedinsson, Ingvar Wu"]
[Result "1-0"]
[ECO "C11"]
[WhiteElo "1823"]
[BlackElo "1664"]
[Annotator "NA RC"]
[PlyCount "89"]
[EventDate "2022.02.23"]
[EventType "swiss"]
[EventCountry "NOR"]
[SourceTitle "playchess.com"]
[Source "ChessBase"]
[SourceQuality "1"]
[TimeControl "5400+30"]

{[%evp 8,80,11,0,0,0,14,32767,32767,32767,32767,32767,32767,32767,32767,-35,32767,-53,32767,-47,-7,-23,49,44,49,32,80,28,76,45,88,22,76,66,59,68,74,70,70,77,73,69,81,58,79,66,66,65,73,73,32767,59,63,61,32767,32767,32767,32767,150,93,32767,32767,32767,32767,32767,32767,32767,32767,305,32767,391,507,666,783,513]} 1. e4 {[%emt 0:00:09]} e6 {[%emt 0:00:11]} 2. d4 {[%emt 0:00:20]} d5 {[%emt 0:00:09]} 3. Nc3 {[%emt 0:00:33]} Nf6 {[%emt 0:00:15]} 4. e5 {[%emt 0:00:35]} Nfd7 {[%emt 0:00:09]} 5. f4 {[%emt 0:00:08]} c5 {[%emt 0:00:09]} 6. Nf3 {[%emt 0:00:22]} Nc6 {[%emt 0:00:31]} 7. Be3 {[%emt 0:00:23]} a6 {[%emt 0:00:18]} 8. Qd2 {[%emt 0:02:31]} b5 {[%emt 0:00:46]} 9. Be2 {[%emt 0:02:26]} Qb6 {[%emt 0:01:10]} 10. O-O {[%emt 0:04:26]} Bb7 {[%emt 0:02:01]} 11. dxc5 {[%emt 0:04:26]} (11. Nd1 $11) 11... Bxc5 {[%emt 0:00:21]} 12. Bxc5 {[%emt 0:08:54]} Nxc5 {[%emt 0:01:46]} 13. Qe3 {[%emt 0:03:53]} b4 {[%emt 0:04:41]} (13... Rd8 $5 {[%cal Rd5d4]} 14. Rad1 b4 $15) 14. Nd1 {[%emt 0:01:10]} Na4 {[%emt 0:01:05]} ({Black should try} 14... a5 $11) 15. Qxb6 $1 {[%emt 0:01:18]} Nxb6 {[%emt 0:00:12]} 16. a3 {[%emt 0:03:48]} a5 {[%emt 0:03:57]} 17. axb4 {[%emt 0:00:54]} (17. Bb5 $14) 17... axb4 {[%emt 0:00:11]} (17... Nxb4 $11 {remains equal.} 18. Nd4 Ke7) 18. Rxa8+ {[%emt 0:00:10]} Bxa8 {[%emt 0:00:06]} 19. Ne3 {[%emt 0:02:24]} (19. Bb5 $16) 19... O-O {[%emt 0:02:03]} 20. Ra1 {[%emt 0:03:53]} Bb7 {[%emt 0:01:20]} 21. Bb5 {[%emt 0:01:26]} Ra8 {[%emt 0:04:11]} 22. Rxa8+ {[%emt 0:00:23]} Nxa8 {[%emt 0:01:08]} 23. Bxc6 {[%emt 0:00:25]} Bxc6 {[%emt 0:00:07]} 24. Nd4 {[%emt 0:00:09]} Bd7 {[%emt 0:01:15]} 25. Kf2 {[%emt 0:03:08]} Kf8 {[%emt 0:00:57]} 26. Ke1 {[%emt 0:09:15]} Ke7 {[%emt 0:00:58]} 27. Kd2 {[%emt 0:01:33]} Nc7 {[%emt 0:01:01]} 28. Nd1 {[%emt 0:02:57]} f6 {[%emt 0:02:17]} 29. Nf2 {[%emt 0:02:01]} fxe5 {[%emt 0:02:07]} 30. fxe5 {[%emt 0:00:07]} Na6 {[%emt 0:01:28]} 31. Nd3 {[%emt 0:00:51]} g5 {[%emt 0:01:47]} 32. g3 {[%emt 0:10:05]} Kf7 {[%emt 0:04:25]} 33. Ke3 {[%emt 0:06:07]} (33. b3 $18) 33... h5 {[%emt 0:02:38]} 34. h4 {[%emt 0:05:21]} Kg6 {[%emt 0:03:24]} 35. Kd2 {[%emt 0:04:42]} gxh4 {[%emt 0:02:46]} 36. gxh4 {[%emt 0:00:09]} Kh6 {[%emt 0:01:16]} 37. Ke3 {[%emt 0:00:55]} Bc8 {[%emt 0:01:22]} 38. Nc6 {[%emt 0:02:01]} Bd7 {[%emt 0:03:21]} 39. Ncxb4 {[%emt 0:00:54]} Nxb4 {[%emt 0:00:09]} 40. Nxb4 {[%emt 0:00:08]} Kg6 $18 {[%emt 0:00:07]} 41. Kf4 {[%emt 0:00:19]} Ba4 {[%emt 0:01:17]} 42. b3 {[%emt 0:00:34]} Bb5 {[%emt 0:00:18]} 43. Nd3 {[%emt 0:00:25]} d4 {[%emt 0:02:29]} 44. Nc5 {[%emt 0:02:02]} Bc6 {[%emt 0:01:30]} 45. Nxe6 {[%emt 0:00:20]} 1-0

[Event "Kragero Resort International 2022"]
[Site "Kragero"]
[Date "2022.02.24"]
[Round "3.2"]
[White "Stenseng, Benjamin"]
[Black "Haug, Havard"]
[Result "0-1"]
[ECO "A05"]
[WhiteElo "1578"]
[BlackElo "1801"]
[Annotator "NA RC"]
[PlyCount "88"]
[EventDate "2022.02.23"]
[EventType "swiss"]
[EventCountry "NOR"]
[SourceTitle "playchess.com"]
[Source "ChessBase"]
[SourceQuality "1"]
[TimeControl "5400+30"]

1. Nf3 {[%emt 0:00:01]} Nf6 {[%emt 0:00:35]} 2. b3 {[%emt 0:01:04]} d6 {[%emt 0:00:43]} 3. Bb2 {[%emt 0:00:07]} e5 {[%emt 0:00:45]} 4. c4 {[%emt 0:01:24]} Nc6 {[%emt 0:01:24]} 5. d3 {[%emt 0:02:21]} e4 {[%emt 0:04:51]} 6. dxe4 {[%emt 0:01:32]} Nxe4 {[%emt 0:00:52]} 7. Nc3 {[%emt 0:02:02]} Nf6 {[%emt 0:08:59]} 8. e3 {[%emt 0:04:32]} Be7 {[%emt 0:03:22]} 9. Bd3 {[%emt 0:03:11]} Ne5 {[%emt 0:06:54]} 10. Be2 {[%emt 0:07:02]} O-O {[%emt 0:00:55]} 11. Qc2 {[%emt 0:00:49]} Qd7 {[%emt 0:06:27]} 12. O-O-O {[%emt 0:12:22]} Qf5 {[%emt 0:07:14] [#]} 13. e4 $1 {[%emt 0:03:03]} Qf4+ $16 {[%emt 0:05:26]} 14. Kb1 {[%emt 0:01:55]} Nxf3 {[%emt 0:04:08]} 15. Bxf3 {[%emt 0:03:57]} c6 {[%emt 0:06:51]} 16. Ne2 {[%emt 0:04:26]} Qg5 {[%emt 0:03:42]} 17. h4 {[%emt 0:06:28]} Qa5 {[%emt 0:00:59]} 18. Nd4 {[%emt 0:04:20]} Bd7 {[%emt 0:09:30]} 19. Nf5 {[%emt 0:05:38]} Bxf5 {[%emt 0:01:52]} 20. exf5 {[%emt 0:00:05]} d5 {[%emt 0:02:02]} 21. g4 {[%emt 0:02:37]} dxc4 {[%emt 0:01:44]} 22. Qxc4 {[%emt 0:00:56]} Rad8 {[%emt 0:01:17]} 23. Qc2 {[%emt 0:04:09]} Rxd1+ {[%emt 0:01:12]} 24. Rxd1 {[%emt 0:01:56]} Rd8 {[%emt 0:00:57]} 25. Rxd8+ {[%emt 0:10:23]} Bxd8 {[%emt 0:01:19]} 26. Qe2 {[%emt 0:01:34]} Qc5 {[%emt 0:03:12]} 27. g5 {[%emt 0:05:29]} Qxf5+ {[%emt 0:03:31]} 28. Ka1 {[%emt 0:00:32]} Nd7 {[%emt 0:00:27]} 29. Qe8+ {[%emt 0:02:47]} Nf8 {[%emt 0:00:14]} 30. Ba3 {[%emt 0:02:05]} c5 {[%emt 0:01:11]} 31. Bxb7 {[%emt 0:01:13]} Ba5 {[%emt 0:01:18]} 32. Qe3 {[%emt 0:01:48]} Ne6 {[%emt 0:02:56]} 33. Bc8 {[%emt 0:01:30]} Bb6 {[%emt 0:04:25]} 34. Qe2 {[%emt 0:01:51]} Bc7 {[%emt 0:01:46]} 35. Qe3 {[%emt 0:01:15]} Bb6 {[%emt 0:02:06]} 36. Qe2 {[%emt 0:00:07]} Qd5 {[%emt 0:00:28]} 37. Ba6 {[%emt 0:01:02]} Qh1+ {[%emt 0:00:20]} 38. Kb2 {[%emt 0:00:25]} Qxh4 {[%emt 0:00:21]} 39. Bc4 {[%emt 0:00:45]} Qxg5 {[%emt 0:00:18]} 40. Kb1 {[%emt 0:00:38]} h5 {[%emt 0:01:06]} 41. Bc1 {[%emt 0:00:21]} Qg4 {[%emt 0:01:05]} 42. f3 {[%emt 0:00:58]} Qg1 {[%emt 0:00:43]} 43. Qe5 {[%emt 0:00:28]} Qg6+ {[%emt 0:00:21]} 44. Bd3 {[%emt 0:00:14]} Qxd3+ {[%emt 0:00:06]} 0-1